[Event "Bangabandhu Premier Div League 2023-24"]
[Site "Dhaka"]
[Date "2024.02.05"]
[Round "5.4"]
[White "Nayem, Haque"]
[Black "Ankit Ray"]
[Result "1/2-1/2"]
[ECO "B32"]
[WhiteElo "2092"]
[BlackElo "1912"]
[Annotator "NA RC"]
[PlyCount "76"]
[EventDate "2024.02.01"]
[EventCountry "BAN"]
[SourceTitle "playchess.com"]
[Source "ChessBase"]
[SourceQuality "1"]
[TimeControl "40/5400+30:1800+30"]

1. e4 {[%emt 0:00:04]} c5 {[%emt 0:00:20]} 2. Nf3 {[%emt 0:00:03]} Nc6 {[%emt 0:00:15]} 3. d4 {[%emt 0:03:13]} cxd4 {[%emt 0:00:14]} 4. Nxd4 {[%emt 0:00:02]} e5 {[%emt 0:00:13]} 5. Nb5 {[%emt 0:00:20]} d6 {[%emt 0:00:10]} 6. N1c3 {[%emt 0:00:48]} a6 {[%emt 0:00:19]} 7. Na3 {[%emt 0:00:03]} Be6 {[%emt 0:00:07]} 8. Nc4 {[%emt 0:05:44]} Rb8 {[%emt 0:00:32]} 9. g3 {[%emt 0:02:54]} Nf6 {[%emt 0:16:00]} 10. Bg5 {[%emt 0:00:14]} Nd4 {[%emt 0:01:25]} 11. Ne3 {[%emt 0:03:27]} Be7 {[%emt 0:04:23]} 12. Bxf6 {[%emt 0:00:42]} Bxf6 {[%emt 0:00:06]} 13. Bg2 {[%emt 0:00:39]} Nc6 {[%emt 0:16:14]} 14. O-O {[%emt 0:06:45]} Ne7 {[%emt 0:06:40]} 15. Qd3 $11 {[%emt 0:06:05]} Qc7 {[%emt 0:03:22]} 16. Rfd1 {[%emt 0:03:13]} Rd8 {[%emt 0:01:25]} 17. Ncd5 {[%emt 0:02:47]} Bxd5 {[%emt 0:01:14]} 18. Nxd5 {[%emt 0:01:57]} Nxd5 {[%emt 0:00:07]} 19. Qxd5 {[%emt 0:00:42]} O-O {[%emt 0:46:54]} 20. c4 {[%emt 0:00:25]} Qb6 {[%emt 0:00:00]} 21. b3 {[%emt 0:00:47]} Be7 {[%emt 0:00:00]} 22. Bh3 {[%emt 0:00:02]} a5 {[%emt 0:00:00]} 23. Rd3 {[%emt 0:00:17]} g6 {[%emt 0:00:00]} 24. Rad1 {[%emt 0:00:10]} Kg7 {[%emt 0:00:00]} 25. Kg2 {[%emt 0:00:13]} Qc6 {[%emt 0:00:00]} 26. Qxc6 {[%emt 0:03:29]} bxc6 {[%emt 0:00:00]} 27. c5 {[%emt 0:00:01]} dxc5 {[%emt 0:00:00]} 28. Rxd8 {[%emt 0:00:03]} Rxd8 {[%emt 0:00:00]} 29. Rxd8 {[%emt 0:00:01]} Bxd8 {[%emt 0:00:00]} 30. Bd7 {[%emt 0:00:02]} Bg5 {[%emt 0:00:00]} 31. Bxc6 {[%emt 0:01:13]} Bc1 {[%emt 0:00:00]} 32. Bd7 {[%emt 0:01:26]} Ba3 {[%emt 0:00:00]} 33. Kf1 {[%emt 0:00:21]} Kf6 {[%emt 0:00:00]} 34. Ke2 {[%emt 0:00:31]} Ke7 {[%emt 0:00:00]} 35. Bc8 {[%emt 0:00:23]} Kd6 {[%emt 0:00:00]} 36. Kd3 {[%emt 0:00:02]} h6 {[%emt 0:00:00]} 37. Ba6 {[%emt 0:00:36]} f5 {[%emt 0:00:00]} 38. Bc8 {[%emt 0:00:22]} f4 {[%emt 0:00:00]} 1/2-1/2

[Event "Bangabandhu Premier Div League 2023-24"]
[Site "Dhaka"]
[Date "2024.02.05"]
[Round "5.4"]
[White "Avik, Sarker"]
[Black "Anata, Choudhury"]
[Result "0-1"]
[ECO "A45"]
[WhiteElo "1914"]
[BlackElo "2196"]
[Annotator "TA"]
[PlyCount "118"]
[EventDate "2024.02.01"]
[EventCountry "BAN"]
[SourceTitle "playchess.com"]
[Source "ChessBase"]
[SourceQuality "1"]
[TimeControl "40/5400+30:1800+30"]

{[%evp 9,118,-10,32,-3,-7,-1,11,-27,-25,-19,-25,-25,-26,-49,-40,-49,-45,-40,-34,-54,-54,-65,-43,-74,-16,-20,-20,-26,-26,-29,-20,-44,-36,-41,-35,-68,-24,-28,-37,-24,-10,-35,-24,-62,-61,-55,-64,-83,-87,-80,-78,-119,-101,-149,-129,-233,-212,-235,-125,-148,-135,-142,-134,-133,-112,-109,-114,-122,-115,-148,-147,-136,-141,-201,-195,-202,-155,-210,-216,-217,-219,-365,-337,-323,-206,-333,-330,-476,-470,-462,-414,-869,-903,-863,-797,-853,-823,-5790,-5093,-1771,-876,-29966,-29967,-12831,-12828,-29987,-29988,-29988,-29989,-29990,-29991]} 1. d4 {[%emt 0:00:03]} Nf6 {[%emt 0:00:10]} 2. Bf4 {[%emt 1:31:27]} c5 {[%emt 0:00:12]} 3. e3 {[%emt 0:00:00]} Qb6 {[%emt 1:31:38]} 4. Nc3 {[%emt 0:01:00]} cxd4 {[%emt 0:00:30]} 5. Qxd4 {[%emt 0:00:30]} Qa5 {[%emt 0:00:30]} 6. Qa4 {[%emt 0:00:30]} Qxa4 {[%emt 0:00:30]} 7. Nxa4 {[%emt 0:00:00]} Nc6 {[%emt 0:00:30]} 8. Nf3 {[%emt 0:01:00] The position is equal.} g6 {[%emt 0:00:30]} 9. Nc3 {[%emt 0:00:30]} Bg7 {[%emt 0:00:00]} 10. e4 {[%emt 0:00:00]} d6 {[%emt 0:01:00]} 11. Bd3 {[%emt 0:01:00]} O-O {[%emt 0:00:30]} 12. O-O {[%emt 0:00:30]} b6 {[%emt 0:00:30]} 13. Bd2 {[%emt 0:00:30]} Bb7 {[%emt 0:00:30]} 14. Rfe1 {[%emt 0:00:00]} Nd7 {[%emt 0:00:00]} 15. Rab1 {[%emt 0:01:00]} Rac8 {[%emt 0:01:00]} 16. Nd5 {[%emt 0:00:00]} Rfe8 {[%emt 0:00:00]} (16... e6 $17 17. Nc3 Nce5) 17. Bc3 $11 {[%emt 0:01:00]} Bxc3 {[%emt 0:01:00]} 18. Nxc3 {[%emt 0:00:30]} a6 {[%emt 0:00:00]} 19. a3 {[%emt 0:00:00]} b5 {[%emt 0:00:00]} 20. Ne2 {[%emt 0:01:00]} Nc5 {[%emt 0:01:30]} 21. b4 {[%emt 0:00:30]} Nd7 {[%emt 0:00:30][%cal Bc5d7,Bd7e5,Be5c4][%mdl 32]} 22. Rec1 {[%emt 0:00:00]} Nce5 {[%emt 0:00:00]} 23. Nxe5 $1 {[%emt 0:00:00]} Nxe5 {[%emt 0:01:00]} 24. Ra1 {[%emt 0:01:30]} Rc7 {[%emt 0:00:30]} 25. f3 {[%emt 0:00:00]} Rec8 {[%emt 0:00:00]} 26. Kf2 {[%emt 0:01:00]} d5 {[%emt 0:01:00]} 27. exd5 {[%emt 0:00:00]} Bxd5 {[%emt 0:00:30]} ({Much less strong is} 27... Nxd3+ 28. cxd3 Bxd5 29. Rxc7 Rxc7 30. g4 $17) 28. Ke3 {[%emt 0:01:00]} Nc4+ {[%emt 0:00:00]} 29. Kf2 {[%emt 0:00:30]} Nb6 {[%emt 0:01:00]} 30. Ke3 {[%emt 0:00:30]} e5 {[%emt 0:00:30]} 31. Kd2 {[%emt 0:00:30]} ({White should play} 31. g4) 31... f5 $17 {[%emt 0:00:30]} 32. c3 {[%emt 0:00:30]} (32. Ng3 $17) 32... Rd8 {[%emt 0:00:00]} 33. Ke3 {[%emt 0:00:00]} Bc4 {[%emt 0:00:00]} (33... Rcd7 $19 34. Re1 Be6 (34... Bxf3 $2 35. Bxf5 gxf5 36. Kxf3 $19)) 34. Bxc4+ {[%emt 0:00:00]} Nxc4+ {[%emt 0:00:00]} 35. Kf2 {[%emt 0:00:00]} Nb2 {[%emt 0:00:00] Against Rd1. aiming for ...Nd3+. Black has more active pieces.} 36. Rc2 {[%emt 0:00:00]} Na4 {[%emt 0:00:00]} 37. Rac1 {[%emt 0:00:00]} Nb6 {[%emt 0:00:00]} 38. f4 {[%emt 0:00:00]} e4 {[%emt 0:00:00]} 39. Nd4 {[%emt 0:00:00]} Kf7 {[%emt 0:00:00] Inhibits Ne6.} 40. Nb3 {[%emt 0:00:00]} Na4 {[%emt 0:01:30] Dodges Nc5} 41. c4 {[%emt 0:15:28]} (41. Nd4 $17) 41... Rd3 $19 {[%emt 0:30:39]} 42. Na5 {[%emt 0:07:41]} Rxa3 {[%emt 0:00:52]} 43. cxb5 {[%emt 0:00:06]} (43. c5 $17) 43... Rxc2+ {[%emt 0:00:07]} 44. Rxc2 {[%emt 0:00:04]} axb5 {[%emt 0:00:07][%mdl 4096] Endgame. KRN-KRN} 45. Rc7+ {[%emt 0:00:17]} (45. Nc6 $142) 45... Kf6 {[%emt 0:01:50] ...Nb2 is the strong threat.} 46. Nb7 {[%emt 0:04:29]} Rd3 {[%emt 0:00:00] Wards off Nd8} 47. Nc5 {[%emt 0:00:00] [#]} (47. g3 {was worth a try.}) 47... Rc3 $1 {[%emt 0:00:00]} 48. Rxh7 {[%emt 0:00:00]} (48. Nd7+ $142 Ke6 49. Nf8+ Kd5 50. Rxh7) 48... Nxc5 {[%emt 0:00:00]} 49. bxc5 {[%emt 0:00:00]} Rxc5 {[%emt 0:00:00] KR-KR} 50. g4 {[%emt 0:00:00]} (50. g3 $142) 50... Rc2+ {[%emt 0:00:00]} 51. Kg3 {[%emt 0:00:00]} Rc3+ {[%emt 0:00:00]} 52. Kh4 {[%emt 0:00:00]} Rf3 {[%emt 0:00:00] Strongly threatening ...e3.} 53. g5+ {[%emt 0:00:00]} Ke6 {[%emt 0:00:00][%cal Oe4e3]} 54. Rg7 {[%emt 0:00:00]} Rxf4+ {[%emt 0:00:00]} (54... e3 $142 55. Rxg6+ Kd5) 55. Kh3 {[%emt 0:00:00]} e3 {[%emt 0:00:00]} 56. Rxg6+ {[%emt 0:00:00]} Kd5 {[%emt 0:00:00] ( -> ...e2)} 57. Rb6 {[%emt 0:00:00]} e2 {[%emt 0:00:00] Black mates.} 58. Rxb5+ {[%emt 0:00:00]} Kc6 {[%emt 0:00:00]} 59. Re5 {[%emt 0:00:00] [#]} Re4 $1 {[%emt 0:00:00] Weighted Error Value: White=0.58/Black=0.18 (very precise) .  Mistake:       	White=8     	Black=2      Inaccurate:     	White=5     	Black=2      OK:         	White=8     	Black=20     Best:        	White=1     	Black=4      Strong:       	White=1     	Black=1} 0-1

[Event "Bangabandhu Premier Div League 2023-24"]
[Site "Dhaka"]
[Date "2024.02.05"]
[Round "5.5"]
[White "Islam, M.M. Zahirul"]
[Black "Mehdi Hasan Parag"]
[Result "0-1"]
[ECO "D17"]
[WhiteElo "1876"]
[BlackElo "2171"]
[Annotator "TA"]
[PlyCount "88"]
[EventDate "2024.02.01"]
[EventCountry "BAN"]
[SourceTitle "playchess.com"]
[Source "ChessBase"]
[SourceQuality "1"]
[TimeControl "40/5400+30:1800+30"]

{[%evp 13,88,16,1,-33,-34,-50,-23,-45,-40,-50,-35,-51,-35,-73,-36,-40,-11,-27,-31,-143,-147,-147,-116,-231,-218,-227,-215,-334,-308,-418,-420,-416,-353,-412,-439,-439,-440,-433,-436,-422,-450,-452,-455,-478,-489,-479,-482,-461,-472,-454,-394,-439,-356,-933,-930,-1847,-1764,-29974,-29975,-29976,-29977,-29970,-29971,-29988,-907,-29974,-29974,-29989,-29990,-29990,-29990,-29991,-29992,-29992,-29993,-29993,-29993]} 1. d4 {[%emt 0:02:25]} d5 {[%emt 0:00:07]} 2. c4 {[%emt 0:00:07]} c6 {[%emt 0:00:03]} 3. Nc3 {[%emt 0:00:09]} Nf6 {[%emt 0:00:05]} 4. Nf3 {[%emt 0:00:15]} dxc4 {[%emt 0:00:12]} 5. a4 {[%emt 0:00:08]} Bf5 {[%emt 1:32:33]} 6. Ne5 {[%emt 1:30:26]} Nbd7 {[%emt 0:00:00]} 7. Nxc4 {[%emt 0:00:00]} Qc7 {[%emt 0:01:00]} 8. e3 {[%emt 0:00:00]} e5 {[%emt 0:00:00]} 9. Be2 {[%emt 0:00:00]} Bb4 {[%emt 0:01:00]} 10. Bd2 {[%emt 0:00:00] Black has an edge.} O-O {[%emt 0:00:00]} 11. O-O {[%emt 0:00:00]} a5 {[%emt 0:01:00]} 12. Rc1 {[%emt 0:03:00]} Rfe8 {[%emt 0:00:00]} 13. Nb1 {[%emt 0:00:00]} Bf8 {[%emt 0:00:00] Black is much more active.} 14. Bc3 {[%emt 0:00:00]} e4 {[%emt 0:01:30]} 15. Nbd2 {[%emt 0:01:30]} Nd5 {[%emt 0:00:00]} 16. Bg4 {[%emt 0:00:00] [#]} (16. Re1 $15) 16... Bxg4 $1 $17 {[%emt 0:00:00]} 17. Qxg4 {[%emt 0:00:00]} N7f6 {[%emt 0:00:00]} 18. Qg3 {[%emt 0:00:00] [#]} (18. Qd1 $17 {keeps fighting.}) 18... Qxg3 $1 $19 {[%emt 0:00:00]} 19. hxg3 {[%emt 0:00:00]} b5 {[%emt 0:02:30]} 20. Ne5 {[%emt 0:00:00]} (20. Bxa5 $142 bxc4 21. Nxc4) 20... b4 {[%emt 0:00:30]} (20... bxa4 21. Ndc4 $17) 21. Nxc6 {[%emt 0:00:00]} bxc3 {[%emt 0:00:00]} (21... Rec8 22. Bxb4 Nxb4 23. Nxb4 Bxb4 24. Nc4 $19) 22. bxc3 {[%emt 0:00:00]} Rec8 {[%emt 0:01:00]} 23. c4 {[%emt 0:00:00]} Rxc6 {[%emt 0:00:00]} 24. cxd5 {[%emt 0:00:00]} Rxc1 {[%emt 0:00:00]} 25. Rxc1 {[%emt 0:00:00]} Bb4 {[%emt 0:01:30]} (25... Nxd5 $2 26. Nxe4 Bb4 27. Rc6 $19) 26. Rc2 {[%emt 0:05:30]} Bxd2 {[%emt 0:00:00]} ({Resist} 26... Nxd5 27. Nxe4 Re8 28. Nc5 $19) 27. Rxd2 {[%emt 0:00:00]} Nxd5 {[%emt 0:00:00][%mdl 4096] Endgame. KRN-KR} 28. Rc2 {[%emt 0:00:00]} Nb6 {[%emt 0:00:00]} 29. Ra2 {[%emt 0:00:00]} f5 {[%emt 0:00:00]} 30. f3 {[%emt 0:00:00]} Kf7 {[%emt 0:00:00]} 31. g4 {[%emt 0:00:00]} g6 {[%emt 0:00:00]} 32. Kf2 {[%emt 0:00:00]} Ke6 {[%emt 0:00:00]} 33. g5 $2 {[%emt 0:00:00]} (33. gxf5+ gxf5 34. Ra1) 33... Nc4 {[%emt 0:04:00]} 34. g4 {[%emt 0:00:00]} Rb8 {[%emt 0:00:00] ( -> ...Rb2+)} 35. gxf5+ {[%emt 0:00:00]} Kxf5 {[%emt 0:00:00]} 36. Kg3 {[%emt 0:00:00]} Rb2 {[%emt 0:00:00]} 37. Ra1 {[%emt 0:05:30]} Nxe3 {[%emt 0:02:00]} 38. Re1 {[%emt 0:00:00]} Rb3 {[%emt 0:00:00]} (38... Rg2+ $142 39. Kh3 Kf4 40. fxe4 Rg3+ (40... Rxg5 $2 41. Kh2 $19) 41. Kh2 Ng4+ (41... Rxg5 $2 42. Rc1 $19) 42. Kh1 Kf3 (42... Kxg5 $2 43. Rf1 $19) 43. Rf1+ Nf2+ (43... Kxe4 $2 44. Rf7 $19) 44. Rxf2+ Kxf2 45. Kh2 Rg4 (45... Rxg5 {is a self mate.} 46. Kh3 h5 47. e5 Rg4 48. e6 g5 49. Kh2 Rh4#) 46. Kh3 Rxe4 47. d5 h6 (47... Rxa4 {leads to mate.} 48. d6 h6 49. gxh6 g5 50. h7 Rh4#) 48. gxh6 g5 49. h7 Rh4#) 39. Rh1 {[%emt 0:00:00]} Nd5 {[%emt 0:00:00] Black mates.} 40. Rxh7 {[%emt 0:00:00]} Rxf3+ {[%emt 0:00:00]} 41. Kh2 {[%emt 0:00:00]} Kxg5 {[%emt 0:00:00]} 42. Ra7 {[%emt 0:00:00]} e3 {[%emt 0:00:00]} 43. Rxa5 {[%emt 0:33:00]} e2 {[%emt 0:33:00]} 44. Rxd5+ {[%emt 0:00:00]} Rf5 {[%emt 0:00:00] Weighted Error Value: White=0.82/Black=0.24 (precise) .  Mistake:       	White=4     	---        Inaccurate:     	White=3     	Black=3      OK:         	White=5     	Black=13     Best:        	White=2     	Black=3      Strong:       	---       	Black=2} 0-1

[Event "Bangabandhu Premier Div League 2023-24"]
[Site "Dhaka"]
[Date "2024.02.05"]
[Round "5.5"]
[White "Mrittika Mallick"]
[Black "Shawket Bin, Osman Shaon"]
[Result "1-0"]
[ECO "B01"]
[WhiteElo "1859"]
[BlackElo "2030"]
[Annotator "NA RC"]
[PlyCount "81"]
[EventDate "2024.02.01"]
[EventCountry "BAN"]
[SourceTitle "playchess.com"]
[Source "ChessBase"]
[SourceQuality "1"]
[TimeControl "40/5400+30:1800+30"]

1. e4 {[%emt 0:00:04]} d5 {[%emt 0:01:31]} 2. exd5 {[%emt 0:00:11]} Qxd5 {[%emt 0:00:07]} 3. Nf3 {[%emt 0:00:36]} Nf6 {[%emt 0:00:10]} 4. d4 {[%emt 0:00:28]} c6 {[%emt 0:01:43]} 5. Be2 {[%emt 0:01:34]} Bf5 {[%emt 0:00:16]} 6. O-O {[%emt 0:00:51] B01: Scandinavian Defence.} e6 {[%emt 0:00:12]} 7. c4 {[%emt 0:00:38]} Qa5 {[%emt 0:01:54]} 8. Qb3 {[%emt 0:08:09]} Nbd7 {[%emt 0:07:32]} 9. Ne5 {[%emt 0:09:19]} Qb6 {[%emt 0:03:46]} 10. Nxd7 {[%emt 0:05:47]} Nxd7 {[%emt 0:03:15]} 11. Qe3 {[%emt 0:04:49]} Be7 {[%emt 0:01:04]} 12. c5 {[%emt 0:04:49]} Qc7 {[%emt 0:00:34]} 13. Nc3 {[%emt 0:00:27]} O-O {[%emt 0:01:15]} 14. g4 {[%emt 0:03:16]} Bg6 {[%emt 0:01:01]} 15. f4 {[%emt 0:02:12]} Nf6 {[%emt 0:05:45]} 16. Qh3 {[%emt 0:05:50]} ({Better is} 16. f5 exf5 17. gxf5) 16... Bc2 {[%emt 0:03:06]} 17. Bd2 {[%emt 0:10:15]} Ne4 {[%emt 0:00:26]} 18. Rfc1 {[%emt 0:01:25]} Nxc3 {[%emt 0:00:30]} 19. bxc3 {[%emt 0:01:18]} Be4 {[%emt 0:02:41]} 20. Bc4 {[%emt 0:05:19]} b5 {[%emt 0:02:07]} 21. Bb3 {[%emt 0:04:49]} a5 {[%emt 0:02:27]} 22. Re1 {[%emt 0:03:20]} Bd5 {[%emt 0:00:06]} 23. Bxd5 {[%emt 0:02:44]} cxd5 {[%emt 0:02:36]} 24. a3 {[%emt 0:05:48]} Rfe8 {[%emt 0:02:45]} 25. Re2 {[%emt 0:02:02]} Rab8 {[%emt 0:13:02]} 26. Rf1 {[%emt 0:03:08]} Bf8 {[%emt 0:04:48]} 27. Qf3 {[%emt 0:01:40]} Qc6 {[%emt 0:03:36]} 28. Rfe1 {[%emt 0:03:11]} g6 {[%emt 0:12:14]} 29. h4 {[%emt 0:00:59]} Bg7 {[%emt 0:00:25]} 30. Qd3 {[%emt 0:00:16]} (30. f5 $18) 30... f6 {[%emt 0:02:21] [#]} (30... Rb7 $16 31. Rg2 Reb8) 31. f5 $18 {[%emt 0:05:17]} gxf5 {[%emt 0:04:38]} 32. gxf5 {[%emt 0:05:59]} e5 {[%emt 0:00:08]} 33. Qg3 {[%emt 0:00:30]} Kf7 {[%emt 0:01:35]} 34. Rg2 {[%emt 0:00:30]} Rg8 {[%emt 0:01:24]} 35. Qf3 {[%emt 0:00:30]} Rb7 {[%emt 0:04:59]} 36. Qh5+ {[%emt 0:00:00]} Kf8 {[%emt 0:12:31]} 37. Qxh7 {[%emt 0:01:00]} e4 {[%emt 0:00:30]} (37... Rh8 $142 38. Qg6 Qe8 39. dxe5 Qxg6 40. Rxg6 fxe5) 38. h5 {[%emt 0:00:00]} Rh8 {[%emt 0:00:00]} 39. Qg6 {[%emt 0:00:00]} Qe8 {[%emt 0:00:00]} 40. h6 {[%emt 0:00:00]} Qxg6 {[%emt 0:00:00]} 41. Rxg6 {[%emt 0:28:43]} 1-0

[Event "Bangabandhu Premier Div League 2023-24"]
[Site "Dhaka"]
[Date "2024.02.05"]
[Round "5.6"]
[White "Mohammad Nubairshah Shaikh"]
[Black "Rahman, Syed Mahfuzur"]
[Result "1-0"]
[ECO "D36"]
[WhiteElo "2428"]
[BlackElo "2087"]
[Annotator "TA"]
[PlyCount "53"]
[EventDate "2024.02.01"]
[EventCountry "BAN"]
[SourceTitle "playchess.com"]
[Source "ChessBase"]
[SourceQuality "1"]
[TimeControl "40/5400+30:1800+30"]

{[%evp 25,53,17,20,22,16,12,32,12,22,15,17,25,25,27,31,46,54,50,55,62,112,120,118,118,112,106,334,329,289,302]} 1. d4 {[%emt 0:07:38]} d5 {[%emt 0:00:34]} 2. c4 {[%emt 0:00:37]} e6 {[%emt 0:00:07]} 3. Nc3 {[%emt 0:00:03]} Nf6 {[%emt 0:00:06]} 4. Bg5 {[%emt 0:00:05]} Be7 {[%emt 0:00:34]} 5. e3 {[%emt 0:00:05]} c6 {[%emt 0:01:11]} 6. Nf3 {[%emt 0:00:11]} Nbd7 {[%emt 0:00:08]} 7. Qc2 {[%emt 0:00:20]} h6 {[%emt 0:00:29]} 8. Bh4 {[%emt 0:00:08]} O-O {[%emt 0:00:09]} 9. cxd5 {[%emt 0:01:38]} exd5 {[%emt 0:00:21]} 10. Bd3 {[%emt 0:00:02]} Re8 {[%emt 0:00:20]} 11. O-O {[%emt 1:25:13]} Ne4 {[%emt 0:05:04]} 12. Bxe7 {[%emt 0:00:00]} Qxe7 {[%emt 0:00:05]} 13. b4 {[%emt 0:01:00][%cal Bb2b4,Bb4b5][%mdl 32]} Ndf6 {[%emt 0:22:56][%cal Bd7f6,Bf6e4,Be4d2][%mdl 32]} 14. b5 {[%emt 0:00:00]} c5 {[%emt 0:00:34]} 15. dxc5 {[%emt 0:00:00] Black must now prevent c6.} Nxc5 {[%emt 0:02:44]} 16. Be2 {[%emt 0:00:00] White is slightly better.} Be6 {[%emt 0:02:59]} 17. Nd4 {[%emt 0:00:00]} Rac8 {[%emt 0:00:26]} 18. Qb2 {[%emt 0:00:00]} Nfe4 {[%emt 1:00:43]} 19. Rac1 {[%emt 0:03:00]} g6 {[%emt 0:00:00]} 20. Qa3 {[%emt 0:00:30]} Nd2 {[%emt 0:00:00]} 21. Rfd1 {[%emt 0:00:00]} Nc4 {[%emt 0:00:00]} 22. Qb4 {[%emt 0:00:00]} (22. Qxa7 $2 {perishes.} Ra8 23. Nc6 Qf8 (23... bxc6 24. Qxe7 Rxe7 25. bxc6 $17) 24. Nxd5 Bxd5 (24... bxc6 $2 25. Ne7+ Qxe7 26. Qxe7 $19) 25. Rxd5 bxc6 $19 (25... Rxa7 $2 26. Nxa7 Ne4 27. Bxc4 $19) (25... Rxa7 $2 26. Nxa7 Ne4 27. Bxc4 $19)) 22... a5 {[%emt 0:02:00]} ({Better is} 22... Nb6 $14) 23. bxa6 $16 {[%emt 0:00:00]} Nxa6 {[%emt 0:00:30]} 24. Qxe7 {[%emt 0:00:00]} Rxe7 {[%emt 0:00:00]} 25. e4 {[%emt 0:02:30]} dxe4 {[%emt 0:01:00] [#]} (25... Kg7 $16) 26. Nxe6 $1 $18 {[%emt 0:00:00]} ({Not} 26. Nxe4 Na3 $18) 26... Rxe6 {[%emt 0:00:00]} 27. Nb5 {[%emt 0:00:00] Weighted Error Value: White=0.02 (flawless) /Black=0.27 (precise) .  Loses game:     	---       	Black=1      Mistake:       	---       	Black=1      OK:         	White=5     	Black=3      Best:        	White=2     	---        Strong:       	White=1     	---} 1-0

[Event "Bangabandhu Premier Div League 2023-24"]
[Site "Dhaka"]
[Date "2024.02.05"]
[Round "5.6"]
[White "Kushagra Mohan"]
[Black "Tanvir, Alam"]
[Result "1-0"]
[ECO "B96"]
[WhiteElo "2374"]
[BlackElo "1836"]
[Annotator "TA"]
[PlyCount "93"]
[EventDate "2024.02.01"]
[EventCountry "BAN"]
[SourceTitle "playchess.com"]
[Source "ChessBase"]
[SourceQuality "1"]
[TimeControl "40/5400+30:1800+30"]

{[%evp 17,93,40,43,41,32,39,53,58,111,53,55,50,104,108,112,113,108,77,83,95,90,96,91,95,92,85,93,83,81,87,100,102,103,75,72,22,30,25,73,81,83,38,96,32,31,22,25,20,26,-8,24,24,41,36,37,39,41,42,59,22,33,32,34,0,0,0,33,37,47,18,111,118,29988,29989,29989,29990,29998,29999]} 1. e4 {[%emt 0:01:24]} c5 {[%emt 0:04:27]} 2. Nf3 {[%emt 0:00:04]} d6 {[%emt 0:00:17]} 3. d4 {[%emt 0:00:03]} cxd4 {[%emt 0:00:05]} 4. Nxd4 {[%emt 0:00:01]} Nf6 {[%emt 0:00:24]} 5. Nc3 {[%emt 0:00:02]} a6 {[%emt 0:00:08]} 6. Bg5 {[%emt 0:00:03]} e6 {[%emt 0:00:49]} 7. f4 {[%emt 0:00:03]} Nbd7 {[%emt 0:00:23]} 8. Qe2 {[%emt 0:00:04]} Qc7 {[%emt 0:00:31]} 9. O-O-O {[%emt 0:00:04]} b5 {[%emt 0:00:59]} 10. a3 {[%emt 0:00:19]} Bb7 {[%emt 0:00:07]} 11. g4 {[%emt 0:00:50]} h6 {[%emt 0:01:02]} 12. Bxf6 {[%emt 0:01:33] White is slightly better.} gxf6 {[%emt 0:00:03]} (12... Nxf6 $14 13. h4 Rb8) 13. Bg2 {[%emt 0:01:52]} (13. f5 $16 Nc5 14. Kb1) 13... O-O-O $14 {[%emt 0:03:32][%cal Be8c8,Bc8b8,Bb8a7][%mdl 32]} 14. f5 {[%emt 0:02:58]} e5 {[%emt 0:00:45]} (14... Re8 $14) 15. Nb3 $16 {[%emt 0:00:23]} Be7 {[%emt 0:00:47]} 16. Nd5 {[%emt 0:01:48]} Bxd5 {[%emt 0:00:05]} 17. exd5 {[%emt 0:00:03]} Nc5 {[%emt 0:02:46]} 18. Kb1 {[%emt 0:00:37]} Kb8 {[%emt 1:22:20]} 19. Nxc5 {[%emt 0:06:19]} dxc5 {[%emt 0:00:00] Black is weak on the light squares} 20. c4 {[%emt 0:03:09]} Qb6 {[%emt 0:00:00]} 21. Rd3 {[%emt 0:00:31]} Ka7 {[%emt 0:00:00]} 22. Rc1 {[%emt 0:00:38]} Rb8 {[%emt 0:00:00]} 23. Rb3 {[%emt 0:05:06]} Rhc8 {[%emt 0:00:00]} 24. Qd2 {[%emt 0:01:02]} Bf8 {[%emt 0:00:00]} 25. Rd1 {[%emt 0:04:22] White is much more active.} Qd6 {[%emt 0:00:00]} 26. Qe3 {[%emt 0:03:32]} (26. Bf1 $16) 26... bxc4 $11 {[%emt 0:00:00]} 27. Rc3 {[%emt 0:00:45]} Rb3 {[%emt 0:00:00]} 28. Rxb3 $16 {[%emt 0:01:34]} cxb3 {[%emt 0:00:00]} 29. Qxb3 {[%emt 0:00:08]} Rb8 {[%emt 0:00:00]} (29... c4 $14 30. Qe3+ Qc5 31. Qxc5+ Bxc5) 30. Qa4 {[%emt 0:01:04]} (30. Qc3 $16) 30... Qb6 $14 {[%emt 0:00:00]} 31. Rd2 {[%emt 0:00:22][%cal Od5d6] Black should prevent d6!} Qb5 {[%emt 0:00:00]} 32. Qe4 {[%emt 0:01:20] Black must now prevent d6.} Bd6 {[%emt 0:00:00]} 33. Bf3 {[%emt 0:02:42]} Qa5 {[%emt 0:00:00]} 34. Qe3 {[%emt 0:05:03][%cal Of3e2]} Rb3 {[%emt 0:00:00]} 35. Qxb3 {[%emt 0:01:08]} Qxd2 {[%emt 0:00:00][%mdl 4096] Endgame. KQB-KQB} 36. Ka2 {[%emt 0:12:34]} Qd4 {[%emt 0:00:00] Prevents Qa4.} (36... Qxh2 $2 {perishes.} 37. Qc4 e4 38. Be2 $18) 37. Qc2 {[%emt 0:01:06]} a5 {[%emt 0:00:00]} 38. h4 {[%emt 0:02:44]} a4 {[%emt 0:00:00]} 39. Be2 {[%emt 0:04:21] [#] aiming for Bc4.} Kb6 $1 {[%emt 0:00:00][%cal Oe5e4]} 40. Bc4 {[%emt 0:11:30]} (40. Qc4 {simplifies} Qxc4+ 41. Bxc4 e4 42. b3) 40... Ka5 {[%emt 0:00:00]} 41. Qe2 {[%emt 0:31:56]} e4 {[%emt 0:14:10]} 42. Ba6 {[%emt 0:00:43][%csl Ga6][%cal Re2b5]} Qxd5+ {[%emt 0:00:28]} 43. Ka1 {[%emt 0:00:16]} Qb3 {[%emt 0:02:00] Repels Qb5+} (43... c4 $11 {remains equal.} 44. Bxc4 (44. Qxc4 Qd1+ 45. Ka2 Qb3+ 46. Kb1 e3 $11) 44... Qd4) 44. Bc4 $1 $16 {[%emt 0:01:51] Intending Qd2+ and mate.} Qf3 $2 {[%emt 0:01:11][%mdl 8192] [#]} (44... Qb8 $16 45. Qe1+ (45. Qxe4 Be5 $16) 45... Kb6) 45. Qd2+ {[%emt 0:00:14] White mates.} Kb6 {[%emt 0:01:08]} 46. Qxd6+ {[%emt 0:00:04]} Ka7 {[%emt 0:00:52]} 47. Qc7+ {[%emt 0:00:30] Weighted Error Value: White=0.12 (very precise) /Black=0.25 (precise) .  Loses game:     	---       	Black=1      Mistake:       	White=3     	Black=5      Inaccurate:     	White=5     	Black=2      OK:         	White=12    	Black=14     Best:        	White=3     	Black=2      Strong:       	White=1     	Black=1} 1-0